fUSD/lending_fUSD_20251230
["ID","MTS","AMOUNT","RATE_DAILY","PERIOD"]
[400086659,1767079840583,-500.0,0.00016999,2]
[400086661,1767079840593,-500.0,0.00016999,2]
[400086663,1767079840603,-500.0,0.00016999,2]
[400086666,1767079840613,-500.0,0.00016999,2]
[400086668,1767079840623,-500.0,0.00016999,2]
[400086669,1767079840633,-500.0,0.00016999,2]
[400086671,1767079840644,-500.0,0.00016999,2]
[400086672,1767079840654,-500.0,0.00016999,2]
[400086673,1767079840664,-500.0,0.00016999,2]
[400086674,1767079840674,-500.0,0.00016999,2]
[400086675,1767079840684,-500.0,0.00016999,2]
[400086676,1767079840694,-316.41810221,0.00016999,2]
[400086677,1767079840704,-500.0,0.00016999,2]
[400086678,1767079840714,-500.0,0.00016999,2]
[400086679,1767079840723,-65432.07901173,0.00017,2]
[400086680,1767079840735,-2859.88288406,0.00017,2]
[400086689,1767079844876,-151.0,0.00016323,2]
[400086690,1767079844886,-151.0,0.00016323,2]
[400086691,1767079844896,-581.59956996,0.00017,2]
[400086692,1767079844908,-330.24087922,0.00017,2]
[400086696,1767079846292,-466.77974192,0.00017,2]
[400086700,1767079886902,608.02867562,0.0003,120]
[400086701,1767080746133,-150.0,0.00015288,2]
[400086702,1767080746155,-108.92281495,0.00015288,2]
[400086704,1767080841122,-41.07718505,0.00015288,2]
[400086705,1767080841143,-155.3165117,0.00015288,2]
[400086706,1767080841168,-150.0,0.00015288,2]
[400086707,1767080841189,-150.0,0.00015288,2]
[400086708,1767080841209,-150.0,0.00015288,2]
[400086709,1767080841230,-150.0,0.00015288,2]
[400086710,1767080841250,-150.0,0.00015288,2]
[400086711,1767080841270,-150.0,0.00015288,2]
[400086712,1767080841290,-150.0,0.00015288,2]
[400086713,1767080841310,-150.0,0.00015288,2]
[400086714,1767080841330,-74.70351586,0.00015288,2]
[400086823,1767080952094,-75.29648414,0.00015288,2]
[400086867,1767081032259,-156.63631246,0.00015527,2]
[400086868,1767081032270,-355.23213285,0.00015546,2]
[400086869,1767081032282,-941.85870651,0.00015546,2]
[400086870,1767081032295,-1374.32512854,0.00015546,2]
[400086871,1767081032307,-568.5840321,0.00015546,2]
[400086872,1767081032317,-150.0,0.00015627,2]
[400086873,1767081032326,-150.0,0.00015627,2]
[400086874,1767081032336,-150.0,0.00015712,2]
[400086875,1767081032346,-150.0,0.00015854,2]
[400086876,1767081032356,-150.0,0.00015854,2]
[400086877,1767081032366,-150.0,0.00015854,2]
[400086878,1767081032376,-166.67,0.00015937,2]
[400086879,1767081032394,-150.0,0.00015967,2]
[400086880,1767081032404,-150.0,0.00015967,2]
[400086881,1767081032413,-26.53128328,0.00016043,2]
[400086882,1767081032426,-832.33893487,0.00016043,2]
[400086883,1767081032438,-114.03978185,0.00016043,2]
[400086884,1767081032449,-151.0,0.00016093,2]
[400086885,1767081032459,-49.54326653,0.00016093,2]
[400086886,1767081032471,-101.45673347,0.00016093,2]
[400086887,1767081032485,-151.0,0.00016093,2]
[400086888,1767081032503,-151.0,0.00016093,2]
[400086889,1767081032515,-300.0,0.00016094,2]
[400086890,1767081032525,-151.0,0.00016095,2]
[400086891,1767081032535,-151.0,0.00016095,2]
[400086892,1767081032549,-191.40701785,0.00016136,2]
[400086893,1767081032574,-1008.59298215,0.00016136,2]
[400086894,1767081032590,-150.0,0.00016137,2]
[400086895,1767081032602,-150.0,0.00016137,2]
[400086896,1767081032614,-150.0,0.00016137,2]
[400086897,1767081032623,-200.0,0.00016149,2]
[400086898,1767081032636,-207.4,0.00016149,2]
[400086899,1767081032646,-256.38141423,0.00016149,2]
[400086900,1767081032656,-902.4047431,0.00016198,2]
[400086901,1767081032666,-5877.21422597,0.00016198,2]
[400086902,1767081032676,-470.43,0.00016219,2]
[400086903,1767081032687,-151.0,0.00016295,2]
[400086904,1767081032697,-500.0,0.00016297,2]
[400086905,1767081032710,-500.0,0.00016297,2]
[400086906,1767081032720,-500.0,0.00016297,2]
[400086907,1767081032730,-312.93534469,0.00016297,2]
[400086908,1767081032740,-455.67358047,0.00016297,2]
[400086909,1767081032749,-500.0,0.00016297,2]
[400086910,1767081032760,-500.0,0.00016297,2]
[400086911,1767081032769,-212764.50221185,0.00016298,2]
[400086912,1767081032782,-62766.06927043,0.00016298,2]
[400086913,1767081032793,-68769.19366026,0.00016298,2]
[400086914,1767081032805,-63194.45265746,0.00016298,2]
[400086915,1767081032814,-167.10973283,0.00016298,2]
[400086916,1767081032823,-150.0,0.00016307,2]
[400086917,1767081032833,-150.0,0.00016307,2]
[400086918,1767081032843,-6277.02635672,0.0001632,2]
[400086919,1767081032852,-267.39183378,0.00016388,2]
[400086920,1767081032862,-1154.074,0.00016397,2]
[400086921,1767081032871,-210.969,0.00016397,2]
[400086922,1767081032881,-150.0,0.0001642,2]
[400086923,1767081032891,-150.0,0.0001642,2]
[400086924,1767081032904,-150.0,0.0001642,2]
[400086925,1767081032913,-500.0,0.00016438,2]
[400086926,1767081032924,-750.55,0.00016449,2]
[400086927,1767081032934,-150.0,0.00016562,2]
[400086928,1767081032946,-500.0,0.0001659,2]
[400086929,1767081032955,-157.57610681,0.0001659,2]
[400086930,1767081032965,-150.0,0.0001659,2]
[400086931,1767081032975,-500.0,0.00016645,2]
[400086932,1767081032985,-150.0,0.00016645,2]
[400086933,1767081032995,-150.0,0.00016647,2]
[400086934,1767081033005,-150.0,0.00016647,2]
[400086935,1767081033015,-291.53661505,0.000167,2]
[400086936,1767081033026,-150.0,0.000167,2]
[400086937,1767081033036,-164.71,0.00016712,2]
[400086938,1767081033046,-500.0,0.00016726,2]
[400086939,1767081033056,-500.0,0.00016726,2]
[400086940,1767081033065,-202.02456023,0.00016726,2]
[400086941,1767081033075,-150.0,0.00016726,2]
[400086942,1767081033085,-150.0,0.00016726,2]
[400086943,1767081033095,-150.0,0.00016726,2]
[400086944,1767081033106,-500.0,0.00016726,2]
[400086945,1767081033116,-500.0,0.00016726,2]
[400086946,1767081033126,-500.0,0.00016726,2]
[400086947,1767081033137,-150.0,0.00016726,2]
[400086948,1767081033146,-500.0,0.00016726,2]
[400086949,1767081033156,-150.0,0.00016726,2]
[400086950,1767081033166,-204.63,0.00016726,2]
[400086951,1767081033175,-236.85319497,0.00016754,2]
[400086952,1767081033186,-520.14669286,0.00016781,2]
[400086953,1767081033196,-500.0,0.00016781,2]
[400086954,1767081033205,-150.0,0.00016781,2]
[400086955,1767081033215,-150.0,0.00016781,2]
[400086956,1767081033225,-204.22488612,0.00016781,2]
[400086957,1767081033235,-500.0,0.00016781,2]
[400086958,1767081033245,-500.0,0.00016781,2]
[400086959,1767081033255,-500.0,0.00016781,2]
[400086960,1767081033264,-150.0,0.00016781,2]
[400086961,1767081033274,-500.0,0.00016781,2]
[400086962,1767081033298,-150.0,0.00016781,2]
[400086963,1767081033308,-300.0,0.00016816,2]
[400086964,1767081033319,-500.0,0.00016836,2]
[400086965,1767081033330,-214.26152508,0.00016836,2]
[400086966,1767081033340,-150.97270228,0.00016836,2]
[400086967,1767081033351,-500.0,0.00016836,2]
[400086968,1767081033361,-500.0,0.00016836,2]
[400086969,1767081033374,-205.63416744,0.00016836,2]
[400086970,1767081033384,-224.58623119,0.00016836,2]
[400086971,1767081033396,-500.0,0.00016836,2]
[400086972,1767081033406,-202.04667091,0.00016836,2]
[400086973,1767081033417,-167.15,0.00016842,2]
[400086974,1767081033428,-6017.30659566,0.00016845,2]
[400086975,1767081033442,-871.0,0.00016845,2]
[400086977,1767081038320,-151.0,0.00016093,2]
[400086978,1767081038332,-151.0,0.00016093,2]
[400086979,1767081038343,-500.0,0.0001659,2]
[400086980,1767081038353,-500.0,0.0001659,2]
[400086981,1767081038364,-500.0,0.0001659,2]
[400086982,1767081038375,-150.0,0.0001659,2]
[400086983,1767081038386,-150.0,0.0001659,2]
[400086984,1767081038397,-500.0,0.0001659,2]
[400086985,1767081038407,-500.0,0.00016645,2]
[400086986,1767081038418,-500.0,0.00016645,2]
[400086987,1767081038428,-500.0,0.00016645,2]
[400086988,1767081038439,-500.0,0.00016645,2]
[400086989,1767081038449,-500.0,0.000167,2]
[400086990,1767081038459,-203.31494816,0.000167,2]
[400086991,1767081038470,-203.38940865,0.000167,2]
[400086992,1767081038481,-500.0,0.000167,2]
[400086993,1767081038492,-500.0,0.00016754,2]
[400086994,1767081038503,-507.55038331,0.00016754,2]
[400086995,1767081038514,-258.13304353,0.00016809,2]
[400086996,1767081038525,-5691.05600949,0.00016845,2]
[400086997,1767081038537,-1348.30677205,0.00016845,2]
[400086998,1767081038547,-200.0,0.00016864,2]
[400086999,1767081038559,-500.0,0.0001689,2]
[400087000,1767081038572,-180.83771888,0.0001689,2]
[400087001,1767081038582,-500.0,0.0001689,2]
[400087002,1767081038592,-112.35243348,0.000169,2]
[400087003,1767081038606,-274.47124256,0.000169,2]
[400087004,1767081038617,-419.99228868,0.000169,2]
[400087005,1767081038629,-2816.86303894,0.000169,2]
[400087337,1767081047233,-500.0,0.00016945,2]
[400087338,1767081047243,-9.98714047,0.00016945,2]
[400087339,1767081047272,-253.88923684,0.00016945,2]
[400087430,1767082045098,-300.65,0.00013699,2]
[400087431,1767082045122,-174.12,0.00014852,2]
[400087432,1767082045143,-166.66,0.00014922,2]
[400087433,1767082045164,-825.13,0.00015068,2]
[400087434,1767082045186,-166.66,0.00015236,2]
[400087435,1767082045208,-150.0,0.00015288,2]
[400087436,1767082045229,-150.0,0.00015288,2]
[400087437,1767082045250,-150.0,0.00015288,2]
[400087438,1767082045272,-154.53555957,0.00015288,2]
[400087439,1767082045292,-150.0,0.00015288,2]
[400087440,1767082045312,-150.0,0.00015288,2]
[400087441,1767082045333,-152.83843726,0.00015288,2]
[400087442,1767082045354,-151.31854683,0.00015288,2]
[400087443,1767082045374,-266.12074106,0.00015288,2]
[400087444,1767082045394,-153.71293313,0.00015288,2]
[400087445,1767082045416,-48.84062533,0.00015288,2]
[400087447,1767082149779,359.14,7.441e-05,2]
[400087448,1767082149987,359.14,7.833e-05,2]
[400087449,1767082151174,359.14,8.225e-05,2]
[400087450,1767082151477,359.14,8.616e-05,2]
[400087451,1767082151672,359.14,9.008e-05,2]
[400087452,1767082151860,359.14,9.4e-05,2]
[400087453,1767082152060,359.14,9.791e-05,2]
[400087454,1767082152268,359.14,0.00010183,2]
[400087455,1767082152467,359.14,0.00010574,2]
[400087456,1767082152754,359.14,0.00010966,2]
[400087457,1767082152939,359.14,0.00011358,2]
[400087458,1767082153140,359.14,0.00011749,2]
[400087459,1767082153420,359.14,0.00012141,2]
[400087460,1767082153617,359.14,0.00012533,2]
[400087461,1767082154130,-359.14,0.00012924,2]
[400087462,1767082154154,-47.27490193,0.00013316,2]
[400087463,1767082154186,-311.86509807,0.00013316,2]
[400087464,1767082154205,-103.09947407,0.00015288,2]
[400087465,1767082154226,-253.69498725,0.00015288,2]
[400087466,1767082154511,359.14,0.00013708,2]
[400087467,1767082154544,359.14,0.00014099,2]
[400087468,1767082154628,359.14,0.00014491,2]
[400087469,1767082154858,359.14,0.00014883,2]
[400087470,1767082164901,200.0,0.00014892,2]
[400087484,1767082231415,-253.69498725,0.00015305,2]
[400087485,1767082231426,-266.43601868,0.00015313,2]
[400087486,1767082231437,-253.69498725,0.00015322,2]
[400087487,1767082231447,-253.69498725,0.00015339,2]
[400087488,1767082231457,-87.97901957,0.00015356,2]
[400087489,1767082231473,-165.71596768,0.00015356,2]
[400087490,1767082231483,-253.69498725,0.00015373,2]
[400087491,1767082231492,-253.69498725,0.00015391,2]
[400087492,1767082231503,-253.69498725,0.00015408,2]
[400087493,1767082231513,-253.69498725,0.00015425,2]
[400087494,1767082231523,-253.69498725,0.00015442,2]
[400087495,1767082231533,-253.69498725,0.00015459,2]
[400087496,1767082231542,-253.69498725,0.00015476,2]
[400087497,1767082231552,-253.69498725,0.00015494,2]
[400087498,1767082231562,-253.69498725,0.00015511,2]
[400087499,1767082231572,-253.69498725,0.00015528,2]
[400087500,1767082231583,-253.69498725,0.00015545,2]
[400087501,1767082231592,-166.66,0.0001555,2]
[400087502,1767082231602,-253.69498725,0.00015562,2]
[400087503,1767082231614,-134.88418532,0.00015579,2]
[400087504,1767082231626,-118.81080193,0.00015579,2]
[400087505,1767082231635,-189.00960006,0.00015597,2]
[400087506,1767082231647,-64.68538719,0.00015597,2]
[400087507,1767082231657,-253.69498725,0.00015614,2]
[400087508,1767082231667,-231.52406974,0.00015631,2]
[400087509,1767082231683,-22.17091751,0.00015631,2]
[400087510,1767082231693,-253.69498725,0.00015648,2]
[400087512,1767082231703,-300.0,0.00015665,2]
[400087514,1767082231713,-300.0,0.00015665,2]
[400087515,1767082231723,-123.13409524,0.00015665,2]
[400087516,1767082231734,-130.56089201,0.00015665,2]
[400087517,1767082231743,-300.0,0.00015682,2]
[400087518,1767082231753,-253.69498725,0.00015682,2]
[400087519,1767082231763,-253.69498725,0.00015699,2]
[400087520,1767082231773,-253.69498725,0.00015717,2]
[400087521,1767082231784,-253.69498725,0.00015734,2]
[400087522,1767082231794,-253.69498725,0.00015751,2]
[400087523,1767082231804,-253.69498725,0.00015768,2]
[400087524,1767082231815,-253.69498725,0.00015785,2]
[400087525,1767082231825,-1000.0,0.00015793,2]
[400087526,1767082231835,-253.69498725,0.00015802,2]
[400087527,1767082231845,-253.69498725,0.0001582,2]
[400087528,1767082231859,-253.69498725,0.00015837,2]
[400087529,1767082231869,-253.69498725,0.00015854,2]
[400087530,1767082231883,-166.66,0.00015864,2]
[400087531,1767082231893,-253.69498725,0.00015871,2]
[400087532,1767082231903,-253.69498725,0.00015888,2]
[400087533,1767082231913,-253.69498725,0.00015905,2]
[400087534,1767082231923,-253.69498725,0.00015923,2]
[400087535,1767082231933,-695.35,0.00015925,2]
[400087536,1767082231942,-68.87447134,0.0001594,2]
[400087542,1767082237509,-184.82051591,0.0001594,2]
[400087544,1767082237519,-103.70071213,0.00015956,2]
[400087545,1767082237531,-870.67928787,0.00015956,2]
[400087546,1767082237540,-163.96268863,0.00015957,2]
[400087547,1767082237911,-89.73229862,0.00015957,2]
[400087548,1767082237922,-253.69498725,0.00015974,2]
[400087549,1767082237931,-506.11672707,0.0001599,2]
[400087550,1767082237942,-224.78262117,0.00015991,2]
[400087561,1767082238260,-28.91236608,0.00015991,2]
[400087563,1767082238270,-151.0,0.00015994,2]
[400087565,1767082238280,-151.0,0.00015994,2]
[400087567,1767082238290,-151.0,0.00015994,2]
[400087569,1767082238301,-151.0,0.00015994,2]
[400087571,1767082238311,-35.18052155,0.00015994,2]
[400087573,1767082238322,-115.81947845,0.00015994,2]
[400087575,1767082238332,-151.0,0.00015994,2]
[400087577,1767082238341,-253.69498725,0.00016008,2]
[400087578,1767082238351,-11856.0784123,0.00016014,2]
[400087581,1767082238366,-1487.85982699,0.00016014,2]
[400087705,1767082245133,-32875.35726071,0.00016014,2]
[400087706,1767082245143,-253.69498725,0.00016025,2]
[400087707,1767082245154,-253.69498725,0.00016043,2]
[400087708,1767082245164,-253.69498725,0.0001606,2]
[400087709,1767082245174,-209.28,0.0001607,3]
[400087710,1767082245184,-307.19,0.00016075,2]
[400087711,1767082245194,-253.69498725,0.00016077,2]
[400087712,1767082245204,-253.69498725,0.00016094,2]
[400087713,1767082245218,-151.0,0.00016103,2]
[400087714,1767082245228,-151.0,0.00016103,2]
[400087715,1767082245238,-253.69498725,0.00016111,2]
[400087716,1767082245249,-5468.67828411,0.00016114,2]
[400087717,1767082245260,-5649.32372112,0.00016114,2]
[400087718,1767082245270,-253.69498725,0.00016128,2]
[400087719,1767082245281,-167.10973283,0.00016136,2]
[400087720,1767082245291,-200.0,0.0001614,2]
[400087721,1767082245301,-207.4,0.0001614,2]
[400087722,1767082245312,-215.0738,0.0001614,2]
[400087723,1767082245322,-184.03592188,0.0001614,2]
[400087724,1767082245332,-253.69498725,0.00016146,2]
[400087725,1767082245342,-253.69498725,0.00016163,2]
[400087726,1767082245352,-166.66,0.00016179,2]
[400087727,1767082245362,-253.69498725,0.0001618,2]
[400087728,1767082245375,-151.0,0.00016188,2]
[400087729,1767082245385,-500.0,0.00016188,2]
[400087730,1767082245395,-553.64373807,0.00016188,2]
[400087731,1767082245406,-151.0,0.00016188,2]
[400087732,1767082245415,-500.0,0.00016188,2]
[400087733,1767082245425,-500.0,0.00016188,2]
[400087734,1767082245436,-151.0,0.00016188,2]
[400087736,1767082245446,-500.0,0.00016188,2]
[400087738,1767082245456,-500.0,0.00016188,2]
[400087741,1767082245466,-151.0,0.00016188,2]
[400087743,1767082245476,-151.0,0.00016188,2]
[400087745,1767082245485,-500.0,0.00016188,2]
[400087747,1767082245500,-500.0,0.00016188,2]
[400087749,1767082245510,-151.0,0.00016188,2]
[400087751,1767082245520,-151.0,0.00016188,2]
[400087753,1767082245530,-500.0,0.00016188,2]
[400087754,1767082245540,-500.0,0.00016188,2]
[400087755,1767082245551,-151.0,0.00016188,2]
[400087756,1767082245562,-629.29506453,0.00016188,2]
[400087757,1767082245572,-151.0,0.00016188,2]
[400087758,1767082245582,-500.0,0.00016188,2]
[400087759,1767082245592,-620.0,0.00016188,2]
[400087760,1767082245602,-151.0,0.00016188,2]
[400087761,1767082245611,-500.0,0.00016188,2]
[400087762,1767082245624,-151.0,0.00016188,2]
[400087763,1767082245634,-151.0,0.00016188,2]
[400087764,1767082245644,-500.0,0.00016188,2]
[400087765,1767082245654,-151.0,0.00016188,2]
[400087766,1767082245665,-151.0,0.00016188,2]
[400087767,1767082245675,-500.0,0.00016188,2]
[400087768,1767082245685,-151.0,0.00016188,2]
[400087769,1767082245696,-151.0,0.00016188,2]
[400087770,1767082245706,-500.0,0.00016188,2]
[400087771,1767082245716,-151.0,0.00016188,2]
[400087772,1767082245726,-224.0247474,0.00016188,2]
[400087773,1767082245736,-500.0,0.00016188,2]
[400087774,1767082245747,-616.58755216,0.00016188,2]
[400087775,1767082245757,-362.62619391,0.00016188,2]
[400087776,1767082245767,-151.0,0.00016195,2]
[400087777,1767082245778,-1144.628,0.00016197,2]
[400087778,1767082245788,-168.775,0.00016197,2]
[400087779,1767082245798,-253.69498725,0.00016197,2]
[400087780,1767082245809,-253.69498725,0.00016214,2]
[400087781,1767082245819,-253.69498725,0.00016231,2]
[400087782,1767082245829,-253.69498725,0.00016249,2]
[400087783,1767082245839,-253.69498725,0.00016266,2]
[400087784,1767082245850,-253.69498725,0.00016283,2]
[400087785,1767082245860,-253.69498725,0.000163,2]
[400087786,1767082245872,-253.69498725,0.00016317,2]
[400087787,1767082245887,-253.69498725,0.00016334,2]
[400087788,1767082245898,-253.69498725,0.00016351,2]
[400087789,1767082245908,-253.69498725,0.00016369,2]
[400087790,1767082245920,-999.0,0.00016381,3]
[400087791,1767082245931,-253.69498725,0.00016386,2]
[400087792,1767082245942,-253.69498725,0.00016403,2]
[400087793,1767082245953,-253.69498725,0.0001642,2]
[400087794,1767082245963,-253.69498725,0.00016437,2]
[400087795,1767082245974,-5233.83,0.00016438,2]
[400087796,1767082245985,-253.69498725,0.00016454,2]
[400087797,1767082245996,-253.69498725,0.00016472,2]
[400087798,1767082246006,-253.69498725,0.00016489,2]
[400087799,1767082246016,-166.66,0.00016493,2]
[400087800,1767082246026,-253.69498725,0.00016506,2]
[400087801,1767082246037,-253.69498725,0.00016523,2]
[400087802,1767082246048,-253.69498725,0.0001654,2]
[400087803,1767082246058,-253.69498725,0.00016557,2]
[400087805,1767082246069,-253.69498725,0.00016575,2]
[400087807,1767082246079,-253.69498725,0.00016592,2]
[400087809,1767082246090,-253.69498725,0.00016609,2]
[400087811,1767082246100,-253.69498725,0.00016626,2]
[400087813,1767082246110,-253.69498725,0.00016643,2]
[400087815,1767082246121,-253.69498725,0.0001666,2]
[400087817,1767082246131,-253.69498725,0.00016677,2]
[400087819,1767082246140,-253.69498725,0.00016695,2]
[400087821,1767082246151,-174.12,0.00016708,2]
[400087822,1767082246161,-253.69498725,0.00016712,2]
[400087823,1767082246171,-150.0,0.00016712,2]
[400087824,1767082246181,-169.08066656,0.00016712,2]
[400087825,1767082246191,-500.0,0.00016712,2]
[400087826,1767082246202,-500.0,0.00016712,2]
[400087827,1767082246213,-500.0,0.00016712,2]
[400087828,1767082246225,-253.69498725,0.00016729,2]
[400087829,1767082246235,-574.12855637,0.00016736,2]
[400087830,1767082246245,-253.69498725,0.00016746,2]
[400087831,1767082246260,-253.69498725,0.00016763,2]
[400087832,1767082246269,-186.12362269,0.00016767,2]
[400087833,1767082246280,-500.0,0.00016767,2]
[400087834,1767082246291,-500.0,0.00016767,2]
[400087835,1767082246301,-500.0,0.00016767,2]
[400087836,1767082246311,-253.69498725,0.0001678,2]
[400087837,1767082246322,-510.0,0.00016793,2]
[400087838,1767082246333,-253.69498725,0.00016798,2]
[400087839,1767082246343,-3123.6355368,0.00016804,2]
[400087840,1767082246353,-1685.35139972,0.00016806,2]
[400087841,1767082246363,-253.69498725,0.00016815,2]
[400087842,1767082246374,-500.0,0.00016822,2]
[400087843,1767082246384,-210.58231847,0.00016822,2]
[400087844,1767082246393,-577.05939325,0.00016822,2]
[400087845,1767082246404,-253.69498725,0.00016832,2]
[400087846,1767082246414,-307.56947617,0.00016835,2]
[400087847,1767082246425,-600.0,0.00016835,2]
[400087848,1767082246435,-250.0,0.00016835,2]
[400087849,1767082246446,-195.0,0.00016835,2]
[400087850,1767082246460,-253.69498725,0.00016849,2]
[400087851,1767082246470,-253.69498725,0.00016866,2]
[400087852,1767082246480,-500.0,0.00016876,2]
[400087853,1767082246490,-253.69498725,0.00016883,2]
[400087854,1767082246500,-257.8824507,0.000169,2]
[400087855,1767082246510,-253.69498725,0.00016901,2]
[400087856,1767082246520,-253.69498725,0.00016918,2]
[400087857,1767082246530,-223.9629988,0.00016931,2]
[400087858,1767082246540,-253.69498725,0.00016935,2]
[400087859,1767082246550,-253.69498725,0.00016952,2]
[400087860,1767082246560,-1784.8484031,0.00016962,2]
[400087861,1767082246570,-253.69498725,0.00016969,2]
[400087862,1767082246580,-150.0,0.00016973,2]
[400087863,1767082246590,-150.0,0.00016973,2]
[400087864,1767082246599,-51738.16,0.00016986,2]
[400087865,1767082246609,-150.0,0.00016986,2]
[400087866,1767082246620,-150.0,0.00016986,2]
[400087868,1767082246630,-253.69498725,0.00016986,2]
[400087870,1767082246640,-204.63,0.0001699,2]
[400087872,1767082246653,-314.16228715,0.00016999,2]
[400087873,1767082246662,-6115.0,0.00017,2]
[400087874,1767082246672,-380396.45141751,0.00017,2]
[400087875,1767082246683,-190.0,0.00017,2]
[400087876,1767082246693,-980902.50958334,0.00017,2]
[400087877,1767082246728,-1791.854808,0.00017,2]
[400087878,1767082246740,-293.12230651,0.00017,2]
[400088041,1767083135139,-447.74902781,0.00015694,2]
[400088060,1767083431829,-743.84297219,0.00015694,2]
[400088061,1767083431841,-166.448,0.00015694,2]
[400088062,1767083431853,-300.0,0.00015913,2]
[400088063,1767083431864,-300.0,0.00015913,2]
[400088064,1767083431875,-8318.8729,0.00015914,2]
[400088066,1767083431887,-167.10973283,0.00015998,2]
[400088069,1767083431898,-2048.84638476,0.00015998,2]
[400088071,1767083431911,-3035.54496423,0.00015998,2]
[400088072,1767083431923,-909.51604653,0.00016,2]
[400088074,1767083431934,-39791.10596991,0.00016,4]
[400088076,1767083431945,-187.36496928,0.00016013,2]
[400088078,1767083431955,-500.0,0.00016013,2]
[400088080,1767083431966,-500.0,0.00016013,2]
[400088082,1767083431977,-469.29994579,0.00016013,2]
[400088129,1767083432403,-214.5162,0.00016098,2]
[400088130,1767083432425,-1445.49,0.00016179,2]
[400088131,1767083432436,-8065.48386191,0.000162,5]
[400088132,1767083432446,-151.0,0.00016226,2]
[400088133,1767083432455,-151.0,0.00016226,2]
[400088134,1767083432465,-151.0,0.00016227,2]
[400088135,1767083432475,-151.0,0.00016227,2]
[400088136,1767083432484,-151.0,0.00016231,2]
[400088137,1767083432494,-151.0,0.00016231,2]
[400088138,1767083432504,-1599.25970348,0.0001666,2]
[400088139,1767083432514,-200.0,0.00016864,2]
[400088140,1767083432524,-171.9216338,0.000169,2]
[400088141,1767083432534,-828.26768906,0.000169,2]
[400088142,1767083432544,-4689.0,0.000169,2]
[400088143,1767083432553,-151.0,0.0001699,2]
[400088144,1767083432563,-151.0,0.0001699,2]
[400088145,1767083432573,-151.0,0.0001699,2]
[400088146,1767083432583,-151.0,0.0001699,2]
[400088147,1767083432594,-151.0,0.0001699,2]
[400088148,1767083432604,-151.0,0.0001699,2]
[400088149,1767083432615,-257.85887532,0.0001699,2]
[400088150,1767083432625,-628.41134831,0.0001699,2]
[400088151,1767083432635,-200.0,0.0001699,2]
[400088152,1767083432645,-10739.90966951,0.0001699,2]
[400088153,1767083432656,-5124.4583916,0.00016997,2]
[400088154,1767083432665,-155.5166562,0.00016997,2]
[400088155,1767083432680,-1077.55509592,0.00016999,5]
[400088156,1767083432690,-300.0,0.00016999,2]
[400088157,1767083432699,-500.0,0.00016999,2]
[400088158,1767083432709,-577.995526,0.00016999,2]
[400088159,1767083432719,-463.27123011,0.00016999,2]
[400088160,1767083432728,-36174.65895897,0.00017,2]
[400088165,1767083437688,-3965.62016211,0.00017,2]
[400088166,1767083437700,-3887.62479682,0.00017,2]
[400088167,1767083437715,-2842.11699556,0.00017,2]
[400088168,1767083437869,-6058.19158,0.00017,2]
[400088287,1767083439816,-1059.80257223,0.00017,2]
[400088288,1767083439828,-10254.00492181,0.00017,2]
[400088318,1767083443937,-151.0,0.00016394,2]
[400088319,1767083443948,-151.0,0.00016394,2]
[400088320,1767083443958,-795813.93531244,0.00017,2]
[400088321,1767083445237,-43942.5,0.00017,2]
[400088337,1767083445646,-2979.0,0.00017,2]
[400088376,1767084341123,-217.67032175,0.00015494,2]
[400088377,1767084341149,-60.13745616,0.00015544,2]
[400088378,1767084437087,-189.86254384,0.00015544,2]